[Event "Queens Festival Europe 2022"]
[Site "Tornelo"]
[Date "2022.06.19"]
[Round "4.4"]
[White "Sikorova, Olga"]
[Black "Okuyaz, Duru"]
[Result "0-1"]
[ECO "A14"]
[WhiteElo "2173"]
[BlackElo "2090"]
[Annotator "NA RC"]
[PlyCount "70"]
[EventDate "2022.06.19"]
[EventType "swiss"]
[EventCountry "NET"]
[SourceTitle "playchess.com"]
[Source "ChessBase"]
[SourceQuality "1"]
[TimeControl "180+2"]

1. c4 {[%emt 0:00:02]} c6 {[%emt 0:00:04]} 2. g3 {[%emt 0:00:02]} d5 {[%emt 0:00:01]} 3. Bg2 {[%emt 0:00:01]} Nf6 {[%emt 0:00:02]} 4. Nf3 {[%emt 0:00:00]} e6 {[%emt 0:00:05]} 5. b3 {[%emt 0:00:02]} Be7 {[%emt 0:00:01]} 6. Bb2 {[%emt 0:00:02]} O-O {[%emt 0:00:01]} 7. O-O {[%emt 0:00:00]} Nbd7 {[%emt 0:00:02]} 8. d3 {[%emt 0:00:02]} a5 {[%emt 0:00:01]} 9. a3 {[%emt 0:00:05]} b5 {[%emt 0:00:12]} 10. Nd4 {[%emt 0:00:14]} Qb6 {[%emt 0:00:15]} 11. cxb5 {[%emt 0:00:13]} cxb5 {[%emt 0:00:01]} 12. Nd2 {[%emt 0:00:01]} Bb7 {[%emt 0:00:06]} 13. Rc1 {[%emt 0:00:18]} Bc5 {[%emt 0:00:06]} 14. e3 {[%emt 0:00:15]} e5 {[%emt 0:00:13]} 15. N4f3 {[%emt 0:00:04]} Rfe8 {[%emt 0:00:21]} 16. Rc2 {[%emt 0:00:04]} e4 {[%emt 0:00:08]} 17. dxe4 {[%emt 0:00:04]} dxe4 {[%emt 0:00:02]} 18. Nd4 {[%emt 0:00:02]} Ne5 {[%emt 0:00:05]} 19. Nf5 {[%emt 0:00:15]} Nd3 {[%emt 0:00:10]} 20. Ba1 {[%emt 0:00:06]} Rad8 {[%emt 0:00:10]} 21. Qb1 {[%emt 0:00:11]} g6 {[%emt 0:00:34]} 22. Nh6+ {[%emt 0:00:05]} Kf8 {[%emt 0:00:07]} 23. a4 {[%emt 0:00:08]} Bxe3 {[%emt 0:00:07]} 24. Bxf6 {[%emt 0:01:01]} Bxf2+ {[%emt 0:00:09]} 25. Kh1 {[%emt 0:00:03]} Qxf6 {[%emt 0:00:05]} 26. Ng4 {[%emt 0:00:07]} Qb6 {[%emt 0:00:03]} 27. axb5 {[%emt 0:00:03]} e3 {[%emt 0:00:04]} 28. Nc4 {[%emt 0:00:08]} Bxg2+ {[%emt 0:00:04]} 29. Kxg2 {[%emt 0:00:05]} Qb7+ {[%emt 0:00:02]} 30. Kh3 {[%emt 0:00:04]} Nf4+ {[%emt 0:00:05]} 31. Kh4 {[%emt 0:00:12]} g5+ {[%emt 0:00:01]} 32. Kxg5 {[%emt 0:00:02]} Qd5+ {[%emt 0:00:05]} 33. Nge5 {[%emt 0:00:05]} Rxe5+ {[%emt 0:00:02]} 34. Nxe5 {[%emt 0:00:02]} Qxe5+ {[%emt 0:00:01]} 35. Kg4 {[%emt 0:00:01]} h5+ {[%emt 0:00:04]} 0-1

[Event "Queens Festival Europe 2022"]
[Site "Tornelo"]
[Date "2022.06.19"]
[Round "4.4"]
[White "Sava, Ana-Maria"]
[Black "Malikova, Ulviyya"]
[Result "0-1"]
[ECO "B41"]
[WhiteElo "1916"]
[BlackElo "1805"]
[Annotator "NA RC"]
[PlyCount "62"]
[EventDate "2022.06.19"]
[EventType "swiss"]
[EventCountry "NET"]
[SourceTitle "playchess.com"]
[Source "ChessBase"]
[SourceQuality "1"]
[TimeControl "180+2"]

1. e4 {[%emt 0:00:02]} c5 {[%emt 0:00:05]} 2. Nf3 {[%emt 0:00:02]} e6 {[%emt 0:00:06]} 3. d4 {[%emt 0:00:02]} cxd4 {[%emt 0:00:04]} 4. Nxd4 {[%emt 0:00:01]} a6 {[%emt 0:00:04]} 5. a4 {[%emt 0:00:02]} Nf6 {[%emt 0:00:16]} 6. Nc3 {[%emt 0:00:03]} Bb4 {[%emt 0:00:12]} 7. Bd3 {[%emt 0:00:05]} Bxc3+ {[%emt 0:00:06]} 8. bxc3 {[%emt 0:00:02]} d6 {[%emt 0:00:01]} 9. Bg5 {[%emt 0:00:10]} h6 {[%emt 0:00:08]} 10. Bh4 {[%emt 0:00:14]} e5 {[%emt 0:00:15]} 11. Nb3 {[%emt 0:00:17]} Be6 {[%emt 0:00:05]} 12. O-O {[%emt 0:00:03]} g5 {[%emt 0:00:07]} 13. Bg3 {[%emt 0:00:02]} h5 {[%emt 0:00:03]} 14. h3 {[%emt 0:00:02]} h4 {[%emt 0:00:04]} 15. Bh2 {[%emt 0:00:03]} g4 {[%emt 0:00:06]} 16. hxg4 {[%emt 0:00:01]} Nxg4 {[%emt 0:00:05]} 17. Qf3 {[%emt 0:00:06]} Nd7 {[%emt 0:00:05]} 18. Nd2 {[%emt 0:00:14]} Rc8 {[%emt 0:00:08]} 19. Qe2 {[%emt 0:00:10]} Rxc3 {[%emt 0:00:04]} 20. f4 {[%emt 0:00:07]} Nxh2 {[%emt 0:00:05]} 21. Kxh2 {[%emt 0:00:02]} exf4 {[%emt 0:00:04]} 22. Rxf4 {[%emt 0:00:02]} Qg5 {[%emt 0:00:04]} 23. Qf2 {[%emt 0:00:34]} Ne5 {[%emt 0:00:04]} 24. Rb1 {[%emt 0:00:52]} Ng4+ {[%emt 0:00:03]} 25. Rxg4 {[%emt 0:00:02]} Qxg4 {[%emt 0:00:05]} 26. Rxb7 {[%emt 0:00:04]} Rg8 {[%emt 0:00:04]} 27. Rb8+ {[%emt 0:00:04]} Rc8 {[%emt 0:00:04]} 28. Rb7 {[%emt 0:00:09]} Qg5 {[%emt 0:00:05]} 29. Nc4 {[%emt 0:00:07]} Rxc4 {[%emt 0:00:05]} 30. Bxc4 {[%emt 0:00:02]} Bxc4 {[%emt 0:00:06]} 31. Rb8+ {[%emt 0:00:02]} Kd7 {[%emt 0:00:05]} 0-1

[Event "Queens Festival Europe 2022"]
[Site "Tornelo"]
[Date "2022.06.19"]
[Round "4.4"]
[White "van den Brink, Nienke"]
[Black "Vicze, Zsofia"]
[Result "0-1"]
[ECO "B56"]
[WhiteElo "1771"]
[BlackElo "1749"]
[Annotator "NA RC"]
[PlyCount "120"]
[EventDate "2022.06.19"]
[EventType "swiss"]
[EventCountry "NET"]
[SourceTitle "playchess.com"]
[Source "ChessBase"]
[SourceQuality "1"]
[TimeControl "180+2"]

1. e4 {[%emt 0:00:02]} c5 {[%emt 0:00:04]} 2. Nf3 {[%emt 0:00:03]} Nc6 {[%emt 0:00:03]} 3. d4 {[%emt 0:00:02]} cxd4 {[%emt 0:00:02]} 4. Nxd4 {[%emt 0:00:01]} Nf6 {[%emt 0:00:01]} 5. Nc3 {[%emt 0:00:03]} d6 {[%emt 0:00:02]} 6. f3 {[%emt 0:00:03]} e5 {[%emt 0:00:02]} 7. Nb3 {[%emt 0:00:02]} Be6 {[%emt 0:00:02]} 8. Be3 {[%emt 0:00:02]} Be7 {[%emt 0:00:03]} 9. Qd2 {[%emt 0:00:01]} a5 {[%emt 0:00:14]} 10. a4 {[%emt 0:00:12]} O-O {[%emt 0:00:07]} 11. O-O-O {[%emt 0:00:02]} Nb4 {[%emt 0:00:02]} 12. g4 {[%emt 0:00:12]} Qc7 {[%emt 0:00:13]} 13. Kb1 {[%emt 0:00:04]} Nd7 {[%emt 0:00:03]} 14. h4 {[%emt 0:00:09]} Nc5 {[%emt 0:00:02]} 15. Nb5 {[%emt 0:00:23]} Nxb3 {[%emt 0:00:27]} 16. Nxc7 {[%emt 0:00:16]} Nxd2+ {[%emt 0:00:03]} 17. Rxd2 {[%emt 0:00:02]} Rac8 {[%emt 0:00:05]} 18. Nxe6 {[%emt 0:00:03]} fxe6 {[%emt 0:00:02]} 19. c3 {[%emt 0:00:02]} Nc6 {[%emt 0:00:04]} 20. Bb5 {[%emt 0:00:05]} Rxf3 {[%emt 0:00:04]} 21. Bb6 {[%emt 0:00:09]} Rf4 {[%emt 0:00:11]} 22. Bc4 {[%emt 0:00:07]} Rcf8 {[%emt 0:00:14]} 23. Bxe6+ {[%emt 0:00:05]} Kh8 {[%emt 0:00:01]} 24. Re2 {[%emt 0:00:17]} h6 {[%emt 0:00:03]} 25. Bf5 {[%emt 0:00:05]} g6 {[%emt 0:00:13]} 26. Bxg6 {[%emt 0:00:06]} Rxg4 {[%emt 0:00:03]} 27. h5 {[%emt 0:00:08]} Bg5 {[%emt 0:00:08]} 28. Bf5 {[%emt 0:00:06]} Rh4 {[%emt 0:00:08]} 29. Rd1 {[%emt 0:00:05]} Be7 {[%emt 0:00:05]} 30. Be3 {[%emt 0:00:08]} Rxh5 {[%emt 0:00:04]} 31. Bg6 {[%emt 0:00:08]} Rh4 {[%emt 0:00:05]} 32. Rg1 {[%emt 0:00:07]} h5 {[%emt 0:00:17]} 33. Bf5 {[%emt 0:00:04]} Rg8 {[%emt 0:00:05]} 34. Rf1 {[%emt 0:00:05]} Rg7 {[%emt 0:00:13]} 35. Bd2 {[%emt 0:00:05]} Bg5 {[%emt 0:00:10]} 36. Be1 {[%emt 0:00:06]} Rf4 {[%emt 0:00:03]} 37. Rh1 {[%emt 0:00:06]} h4 {[%emt 0:00:03]} 38. Reh2 {[%emt 0:00:05]} Ne7 {[%emt 0:00:17]} 39. Bxh4 {[%emt 0:00:02]} Bxh4 {[%emt 0:00:02]} 40. Rxh4+ {[%emt 0:00:02]} Rxh4 {[%emt 0:00:02]} 41. Rxh4+ {[%emt 0:00:01]} Kg8 {[%emt 0:00:01]} 42. Rg4 {[%emt 0:00:02]} Rxg4 {[%emt 0:00:03]} 43. Bxg4 {[%emt 0:00:01]} b6 {[%emt 0:00:02]} 44. Kc2 {[%emt 0:00:01]} Kg7 {[%emt 0:00:01]} 45. Kd3 {[%emt 0:00:01]} Kf6 {[%emt 0:00:02]} 46. Kc4 {[%emt 0:00:02]} Kg5 {[%emt 0:00:03]} 47. Bf5 {[%emt 0:00:01]} Nxf5 {[%emt 0:00:03]} 48. exf5 {[%emt 0:00:02]} Kxf5 {[%emt 0:00:01]} 49. Kd5 {[%emt 0:00:01]} e4 {[%emt 0:00:03]} 50. Kxd6 {[%emt 0:00:02]} e3 {[%emt 0:00:02]} 51. Kc6 {[%emt 0:00:01]} e2 {[%emt 0:00:01]} 52. Kxb6 {[%emt 0:00:01]} e1=Q {[%emt 0:00:02]} 53. c4 {[%emt 0:00:01]} Qb4+ {[%emt 0:00:02]} 54. Kc6 {[%emt 0:00:02]} Qxc4+ {[%emt 0:00:02]} 55. Kb6 {[%emt 0:00:03]} Qxa4 {[%emt 0:00:01]} 56. b3 {[%emt 0:00:02]} Qxb3+ {[%emt 0:00:02]} 57. Kxa5 {[%emt 0:00:02]} Ke5 {[%emt 0:00:01]} 58. Ka6 {[%emt 0:00:04]} Kd6 {[%emt 0:00:02]} 59. Ka5 {[%emt 0:00:01]} Kc6 {[%emt 0:00:02]} 60. Ka6 {[%emt 0:00:03]} Qa3# {[%emt 0:00:01]} 0-1

[Event "Queens Festival Europe 2022"]
[Site "Tornelo"]
[Date "2022.06.19"]
[Round "4.4"]
[White "Valiyeva, Asnad"]
[Black "Strnadova, Monika"]
[Result "1-0"]
[ECO "A48"]
[WhiteElo "1237"]
[BlackElo "1518"]
[Annotator "NA RC"]
[PlyCount "77"]
[EventDate "2022.06.19"]
[EventType "swiss"]
[EventCountry "NET"]
[SourceTitle "playchess.com"]
[Source "ChessBase"]
[SourceQuality "1"]
[TimeControl "180+2"]

1. d4 {[%emt 0:00:02]} Nf6 {[%emt 0:00:05]} 2. Bf4 {[%emt 0:00:02]} g6 {[%emt 0:00:02]} 3. e3 {[%emt 0:00:02]} Bg7 {[%emt 0:00:01]} 4. Nf3 {[%emt 0:00:02]} d6 {[%emt 0:00:01]} 5. Be2 {[%emt 0:00:02]} O-O {[%emt 0:00:03]} 6. c3 {[%emt 0:00:01]} Nbd7 {[%emt 0:00:01]} 7. O-O {[%emt 0:00:02]} c5 {[%emt 0:00:02]} 8. Nbd2 {[%emt 0:00:02]} b6 {[%emt 0:00:02]} 9. h3 {[%emt 0:00:02]} Bb7 {[%emt 0:00:02]} 10. a4 {[%emt 0:00:02]} a5 {[%emt 0:00:04]} 11. Bh2 {[%emt 0:00:04]} Rc8 {[%emt 0:00:06]} 12. Re1 {[%emt 0:00:02]} cxd4 {[%emt 0:00:03]} 13. exd4 {[%emt 0:00:03]} Nd5 {[%emt 0:00:07]} 14. Bc4 {[%emt 0:00:06]} Re8 {[%emt 0:00:11]} 15. Qb3 {[%emt 0:00:04]} N7f6 {[%emt 0:00:10]} 16. Bb5 {[%emt 0:00:06]} Bc6 {[%emt 0:00:06]} 17. Bxc6 {[%emt 0:00:02]} Rxc6 {[%emt 0:00:03]} 18. Ne4 {[%emt 0:00:02]} Nxe4 {[%emt 0:00:17]} 19. Qxd5 {[%emt 0:00:05]} Rc8 {[%emt 0:00:23]} 20. Qxe4 {[%emt 0:00:04]} e6 {[%emt 0:00:03]} 21. Red1 {[%emt 0:00:07]} d5 {[%emt 0:00:11]} 22. Qe2 {[%emt 0:00:05]} Qe7 {[%emt 0:00:04]} 23. Re1 {[%emt 0:00:07]} Qd7 {[%emt 0:00:05]} 24. Be5 {[%emt 0:00:03]} Qc6 {[%emt 0:00:07]} 25. Bxg7 {[%emt 0:00:03]} Kxg7 {[%emt 0:00:01]} 26. Ne5 {[%emt 0:00:03]} Qc7 {[%emt 0:00:03]} 27. Kh1 {[%emt 0:00:02]} f6 {[%emt 0:00:04]} 28. Nf3 {[%emt 0:00:03]} Qf4 {[%emt 0:00:02]} 29. Qd2 {[%emt 0:00:02]} Qf5 {[%emt 0:00:05]} 30. Nh2 {[%emt 0:00:11]} e5 {[%emt 0:00:12]} 31. dxe5 {[%emt 0:00:04]} Rxe5 {[%emt 0:00:06]} 32. Rxe5 {[%emt 0:00:04]} Qxe5 {[%emt 0:00:01]} 33. Re1 {[%emt 0:00:03]} Qd6 {[%emt 0:00:02]} 34. Qe3 {[%emt 0:00:02]} Rc7 {[%emt 0:00:02]} 35. Ng4 {[%emt 0:00:05]} Rf7 {[%emt 0:00:10]} 36. Qh6+ {[%emt 0:00:03]} Kg8 {[%emt 0:00:02]} 37. Re8+ {[%emt 0:00:02]} Rf8 {[%emt 0:00:02]} 38. Rxf8+ {[%emt 0:00:02]} Qxf8 {[%emt 0:00:02]} 39. Qxf8+ {[%emt 0:00:02]} 1-0

[Event "Queens Festival Europe 2022"]
[Site "Tornelo"]
[Date "2022.06.19"]
[Round "4.5"]
[White "Kordzadze, Nino"]
[Black "Amrayeva, Aytan"]
[Result "0-1"]
[ECO "A07"]
[WhiteElo "2043"]
[BlackElo "2143"]
[Annotator "NA RC"]
[PlyCount "82"]
[EventDate "2022.06.19"]
[EventType "swiss"]
[EventCountry "NET"]
[SourceTitle "playchess.com"]
[Source "ChessBase"]
[SourceQuality "1"]
[TimeControl "180+2"]

1. g3 {[%emt 0:00:02]} e6 {[%emt 0:00:04]} 2. Bg2 {[%emt 0:00:02]} d5 {[%emt 0:00:01]} 3. Nf3 {[%emt 0:00:01]} f5 {[%emt 0:00:02]} 4. O-O {[%emt 0:00:05]} Nf6 {[%emt 0:00:01]} 5. b3 {[%emt 0:00:02]} c6 {[%emt 0:00:02]} 6. Bb2 {[%emt 0:00:01]} Be7 {[%emt 0:00:01]} 7. d4 {[%emt 0:00:01]} O-O {[%emt 0:00:02]} 8. Nbd2 {[%emt 0:00:01]} Nbd7 {[%emt 0:00:01]} 9. Ne5 {[%emt 0:00:02]} Bd6 {[%emt 0:00:05]} 10. e3 {[%emt 0:00:04]} Qe7 {[%emt 0:00:01]} 11. f4 {[%emt 0:00:01]} Ne4 {[%emt 0:00:02]} 12. Ndf3 {[%emt 0:00:33]} Ba3 {[%emt 0:00:05]} 13. Bxa3 {[%emt 0:00:35]} Qxa3 {[%emt 0:00:03]} 14. Qd3 {[%emt 0:00:03]} Qd6 {[%emt 0:00:09]} 15. c4 {[%emt 0:00:11]} b6 {[%emt 0:00:02]} 16. Nd2 {[%emt 0:00:31]} Ba6 {[%emt 0:00:05]} 17. Nxe4 {[%emt 0:00:05]} fxe4 {[%emt 0:00:02]} 18. Qc2 {[%emt 0:00:05]} Rac8 {[%emt 0:00:07]} 19. Rfd1 {[%emt 0:00:03]} Nf6 {[%emt 0:00:01]} 20. c5 {[%emt 0:00:10]} bxc5 {[%emt 0:00:05]} 21. Qxc5 {[%emt 0:00:05]} Qxc5 {[%emt 0:00:02]} 22. dxc5 {[%emt 0:00:01]} Rfe8 {[%emt 0:00:18]} 23. Bf1 {[%emt 0:00:01]} Bxf1 {[%emt 0:00:03]} 24. Kxf1 {[%emt 0:00:01]} Kf8 {[%emt 0:00:02]} 25. Rd4 {[%emt 0:00:03]} Ke7 {[%emt 0:00:02]} 26. Ra4 {[%emt 0:00:02]} Rc7 {[%emt 0:00:04]} 27. Ra6 {[%emt 0:00:02]} Rec8 {[%emt 0:00:03]} 28. Rd1 {[%emt 0:00:02]} Nd7 {[%emt 0:00:01]} 29. Ng4 {[%emt 0:00:08]} Nxc5 {[%emt 0:00:03]} 30. Ra5 {[%emt 0:00:04]} Nd3 {[%emt 0:00:04]} 31. a3 {[%emt 0:00:38]} c5 {[%emt 0:00:07]} 32. Rb5 {[%emt 0:00:10]} Rc6 {[%emt 0:00:23]} 33. Ke2 {[%emt 0:00:05]} Rb6 {[%emt 0:00:02]} 34. Ra5 {[%emt 0:00:02]} Rc7 {[%emt 0:00:04]} 35. Ne5 {[%emt 0:00:01]} Rxb3 {[%emt 0:00:11]} 36. Nxd3 {[%emt 0:00:09]} exd3+ {[%emt 0:00:05]} 37. Rxd3 {[%emt 0:00:02]} Rb2+ {[%emt 0:00:04]} 38. Kf3 {[%emt 0:00:02]} Rxh2 {[%emt 0:00:03]} 39. Rc3 {[%emt 0:00:02]} c4 {[%emt 0:00:08]} 40. Ra4 {[%emt 0:00:02]} h5 {[%emt 0:00:04]} 41. e4 {[%emt 0:00:02]} h4 {[%emt 0:00:03]} 0-1

[Event "Queens Festival Europe 2022"]
[Site "Tornelo"]
[Date "2022.06.19"]
[Round "4.5"]
[White "Stastna, Martina"]
[Black "Mammadova, Aysel"]
[Result "0-1"]
[ECO "C64"]
[WhiteElo "1912"]
[BlackElo "1893"]
[Annotator "NA RC"]
[PlyCount "72"]
[EventDate "2022.06.19"]
[EventType "swiss"]
[EventCountry "NET"]
[SourceTitle "playchess.com"]
[Source "ChessBase"]
[SourceQuality "1"]
[TimeControl "180+2"]

1. e4 {[%emt 0:00:02]} e5 {[%emt 0:00:06]} 2. Nf3 {[%emt 0:00:03]} Nc6 {[%emt 0:00:02]} 3. Bb5 {[%emt 0:00:02]} Nf6 {[%emt 0:00:02]} 4. O-O {[%emt 0:00:04]} Bc5 {[%emt 0:00:03]} 5. c3 {[%emt 0:00:03]} O-O {[%emt 0:00:02]} 6. Re1 {[%emt 0:00:13]} d6 {[%emt 0:00:03]} 7. h3 {[%emt 0:00:09]} h6 {[%emt 0:00:08]} 8. d4 {[%emt 0:00:03]} exd4 {[%emt 0:00:07]} 9. cxd4 {[%emt 0:00:02]} Bb4 {[%emt 0:00:02]} 10. Nc3 {[%emt 0:00:05]} Bd7 {[%emt 0:00:03]} 11. a3 {[%emt 0:00:05]} Ba5 {[%emt 0:00:03]} 12. Ba4 {[%emt 0:00:18]} Re8 {[%emt 0:00:04]} 13. Bc2 {[%emt 0:00:17]} Nh7 {[%emt 0:00:27]} 14. Qd3 {[%emt 0:00:09]} Nf8 {[%emt 0:00:10]} 15. b4 {[%emt 0:00:10]} Bb6 {[%emt 0:00:03]} 16. Bb2 {[%emt 0:00:09]} Qf6 {[%emt 0:00:03]} 17. Na4 {[%emt 0:00:08]} Qg6 {[%emt 0:00:03]} 18. Kh1 {[%emt 0:00:12]} Ne7 {[%emt 0:00:08]} 19. Nxb6 {[%emt 0:00:04]} axb6 {[%emt 0:00:03]} 20. d5 {[%emt 0:00:08]} f5 {[%emt 0:00:09]} 21. Nh4 {[%emt 0:00:09]} Qh5 {[%emt 0:00:10]} 22. Qc3 {[%emt 0:00:12]} Qf7 {[%emt 0:00:11]} 23. Nxf5 {[%emt 0:00:19]} Nxf5 {[%emt 0:00:02]} 24. exf5 {[%emt 0:00:02]} c6 {[%emt 0:00:05]} 25. dxc6 {[%emt 0:00:08]} Bxc6 {[%emt 0:00:09]} 26. Qg3 {[%emt 0:00:05]} Nh7 {[%emt 0:00:04]} 27. f6 {[%emt 0:00:07]} Nxf6 {[%emt 0:00:04]} 28. Bg6 {[%emt 0:00:11]} Rxe1+ {[%emt 0:00:05]} 29. Rxe1 {[%emt 0:00:02]} Qf8 {[%emt 0:00:03]} 30. Bc2 {[%emt 0:00:06]} Re8 {[%emt 0:00:05]} 31. Rxe8 {[%emt 0:00:06]} Nxe8 {[%emt 0:00:02]} 32. Bb3+ {[%emt 0:00:03]} Kh8 {[%emt 0:00:03]} 33. Qg6 {[%emt 0:00:03]} Nf6 {[%emt 0:00:05]} 34. Bxf6 {[%emt 0:00:03]} Qxf6 {[%emt 0:00:03]} 35. Qe8+ {[%emt 0:00:02]} Bxe8 {[%emt 0:00:04]} 36. Bc2 {[%emt 0:00:03]} Bc6 {[%emt 0:00:02]} 0-1

[Event "Queens Festival Europe 2022"]
[Site "Tornelo"]
[Date "2022.06.19"]
[Round "4.5"]
[White "Stadlinger, Lea"]
[Black "Posadas, Rayelynn"]
[Result "1-0"]
[ECO "B41"]
[WhiteElo "1723"]
[BlackElo "1648"]
[Annotator "NA RC"]
[PlyCount "88"]
[EventDate "2022.06.19"]
[EventType "swiss"]
[EventCountry "NET"]
[SourceTitle "playchess.com"]
[Source "ChessBase"]
[SourceQuality "1"]
[TimeControl "180+2"]

1. e4 {[%emt 0:00:02]} c5 {[%emt 0:00:06]} 2. Nf3 {[%emt 0:00:04]} e6 {[%emt 0:00:02]} 3. d4 {[%emt 0:00:02]} cxd4 {[%emt 0:00:02]} 4. Nxd4 {[%emt 0:00:02]} a6 {[%emt 0:00:03]} 5. Bc4 {[%emt 0:00:08]} Nf6 {[%emt 0:00:04]} 6. e5 {[%emt 0:00:19]} Qa5+ {[%emt 0:00:02]} 7. Nc3 {[%emt 0:00:10]} Qxe5+ {[%emt 0:00:02]} 8. Be3 {[%emt 0:00:01]} Bb4 {[%emt 0:00:30]} 9. O-O {[%emt 0:00:06]} O-O {[%emt 0:00:03]} 10. Nf3 {[%emt 0:00:20]} Qc7 {[%emt 0:00:04]} 11. Bd3 {[%emt 0:00:17]} Bxc3 {[%emt 0:00:06]} 12. bxc3 {[%emt 0:00:04]} Qxc3 {[%emt 0:00:01]} 13. Bd4 {[%emt 0:00:02]} Qc7 {[%emt 0:00:05]} 14. Bxf6 {[%emt 0:00:01]} gxf6 {[%emt 0:00:01]} 15. Nh4 {[%emt 0:00:04]} Qf4 {[%emt 0:00:03]} 16. Qh5 {[%emt 0:00:08]} f5 {[%emt 0:00:04]} 17. Rfe1 {[%emt 0:00:50]} f6 {[%emt 0:00:04]} 18. Re3 {[%emt 0:00:03]} Rf7 {[%emt 0:00:08]} 19. Rg3+ {[%emt 0:00:03]} Kf8 {[%emt 0:00:05]} 20. Re1 {[%emt 0:00:28]} Nc6 {[%emt 0:00:09]} 21. h3 {[%emt 0:00:14]} Ne5 {[%emt 0:00:17]} 22. Ree3 {[%emt 0:00:07]} Nxd3 {[%emt 0:00:06]} 23. Rxd3 {[%emt 0:00:03]} b5 {[%emt 0:00:36]} 24. Rg6 {[%emt 0:00:05]} Bb7 {[%emt 0:00:28]} 25. Rh6 {[%emt 0:00:05]} Ke7 {[%emt 0:00:08]} 26. Rxh7 {[%emt 0:00:02]} Raf8 {[%emt 0:00:01]} 27. Ng6+ {[%emt 0:00:02]} Ke8 {[%emt 0:00:05]} 28. Nxf4 {[%emt 0:00:00]} Be4 {[%emt 0:00:06]} 29. Rxf7 {[%emt 0:00:01]} Rxf7 {[%emt 0:00:02]} 30. Ra3 {[%emt 0:00:02]} Bb7 {[%emt 0:00:04]} 31. f3 {[%emt 0:00:01]} Ke7 {[%emt 0:00:02]} 32. Kh2 {[%emt 0:00:02]} e5 {[%emt 0:00:06]} 33. Ng6+ {[%emt 0:00:00]} Ke6 {[%emt 0:00:01]} 34. g4 {[%emt 0:00:03]} fxg4 {[%emt 0:00:10]} 35. hxg4 {[%emt 0:00:02]} Bxf3 {[%emt 0:00:02]} 36. Qf5+ {[%emt 0:00:02]} Kd6 {[%emt 0:00:03]} 37. Rxf3 {[%emt 0:00:00]} Kc7 {[%emt 0:00:02]} 38. Qxf6 {[%emt 0:00:03]} Rxf6 {[%emt 0:00:01]} 39. Rxf6 {[%emt 0:00:02]} d6 {[%emt 0:00:02]} 40. Re6 {[%emt 0:00:05]} Kd7 {[%emt 0:00:02]} 41. Nf8+ {[%emt 0:00:01]} Kc6 {[%emt 0:00:01]} 42. g5 {[%emt 0:00:02]} Kd5 {[%emt 0:00:01]} 43. g6 {[%emt 0:00:01]} e4 {[%emt 0:00:00]} 44. g7 {[%emt 0:00:02]} e3 {[%emt 0:00:01]} 1-0

[Event "Queens Festival Europe 2022"]
[Site "Tornelo"]
[Date "2022.06.19"]
[Round "4.5"]
[White "Rahimli, Ulkar"]
[Black "Caku, Kler"]
[Result "1-0"]
[ECO "D05"]
[WhiteElo "1268"]
[BlackElo "1542"]
[Annotator "NA RC"]
[PlyCount "135"]
[EventDate "2022.06.19"]
[EventType "swiss"]
[EventCountry "NET"]
[SourceTitle "playchess.com"]
[Source "ChessBase"]
[SourceQuality "1"]
[TimeControl "180+2"]

1. d4 {[%emt 0:00:02]} d5 {[%emt 0:00:04]} 2. Nf3 {[%emt 0:00:05]} e6 {[%emt 0:00:01]} 3. e3 {[%emt 0:00:02]} Nf6 {[%emt 0:00:02]} 4. Bd3 {[%emt 0:00:02]} Nbd7 {[%emt 0:00:02]} 5. O-O {[%emt 0:00:02]} b6 {[%emt 0:00:01]} 6. b3 {[%emt 0:00:03]} Be7 {[%emt 0:00:05]} 7. Bb2 {[%emt 0:00:03]} Bb7 {[%emt 0:00:02]} 8. Nbd2 {[%emt 0:00:03]} Ne4 {[%emt 0:00:08]} 9. Ne5 {[%emt 0:00:04]} Nxe5 {[%emt 0:00:05]} 10. dxe5 {[%emt 0:00:03]} Nc5 {[%emt 0:00:03]} 11. Be2 {[%emt 0:00:06]} O-O {[%emt 0:00:04]} 12. f4 {[%emt 0:00:05]} Nd7 {[%emt 0:00:11]} 13. Nf3 {[%emt 0:00:26]} c5 {[%emt 0:00:10]} 14. c4 {[%emt 0:00:07]} Qc7 {[%emt 0:00:12]} 15. cxd5 {[%emt 0:00:15]} Bxd5 {[%emt 0:00:05]} 16. Bd3 {[%emt 0:00:22]} Rad8 {[%emt 0:00:29]} 17. Qe2 {[%emt 0:00:20]} Rfe8 {[%emt 0:00:34]} 18. Rad1 {[%emt 0:00:04]} Nf8 {[%emt 0:00:04]} 19. Qf2 {[%emt 0:00:06]} Qb7 {[%emt 0:00:17]} 20. Qg3 {[%emt 0:00:28]} b5 {[%emt 0:00:24]} 21. Ng5 {[%emt 0:00:16]} Bxg5 {[%emt 0:00:20]} 22. fxg5 {[%emt 0:00:03]} c4 {[%emt 0:00:03]} 23. Bc2 {[%emt 0:00:07]} b4 {[%emt 0:00:07]} 24. Bd4 {[%emt 0:00:06]} cxb3 {[%emt 0:00:03]} 25. axb3 {[%emt 0:00:02]} a5 {[%emt 0:00:02]} 26. Qh4 {[%emt 0:00:04]} Ng6 {[%emt 0:00:01]} 27. Qg3 {[%emt 0:00:04]} Be4 {[%emt 0:00:03]} 28. Bxe4 {[%emt 0:00:07]} Qxe4 {[%emt 0:00:00]} 29. Qf2 {[%emt 0:00:04]} Re7 {[%emt 0:00:05]} 30. Bc5 {[%emt 0:00:06]} Rxd1 {[%emt 0:00:06]} 31. Rxd1 {[%emt 0:00:04]} Re8 {[%emt 0:00:02]} 32. Rd7 {[%emt 0:00:04]} Qb1+ {[%emt 0:00:05]} 33. Qf1 {[%emt 0:00:02]} Qxf1+ {[%emt 0:00:01]} 34. Kxf1 {[%emt 0:00:02]} Nxe5 {[%emt 0:00:01]} 35. Ra7 {[%emt 0:00:04]} h6 {[%emt 0:00:04]} 36. gxh6 {[%emt 0:00:03]} gxh6 {[%emt 0:00:02]} 37. Rxa5 {[%emt 0:00:02]} Nd3 {[%emt 0:00:02]} 38. Rb5 {[%emt 0:00:03]} Nxc5 {[%emt 0:00:03]} 39. Rxc5 {[%emt 0:00:01]} Rb8 {[%emt 0:00:04]} 40. Rc4 {[%emt 0:00:02]} Kg7 {[%emt 0:00:03]} 41. Ke2 {[%emt 0:00:02]} Kg6 {[%emt 0:00:01]} 42. Kf3 {[%emt 0:00:01]} Kf5 {[%emt 0:00:01]} 43. g4+ {[%emt 0:00:04]} Ke5 {[%emt 0:00:03]} 44. h4 {[%emt 0:00:02]} Kd5 {[%emt 0:00:02]} 45. e4+ {[%emt 0:00:01]} Ke5 {[%emt 0:00:03]} 46. Rc5+ {[%emt 0:00:04]} Kd6 {[%emt 0:00:02]} 47. Rc4 {[%emt 0:00:01]} Ke5 {[%emt 0:00:01]} 48. Rc7 {[%emt 0:00:04]} Kf6 {[%emt 0:00:03]} 49. Kf4 {[%emt 0:00:02]} Kg7 {[%emt 0:00:02]} 50. e5 {[%emt 0:00:02]} Rb5 {[%emt 0:00:02]} 51. Ke4 {[%emt 0:00:02]} Rd5 {[%emt 0:00:02]} 52. Rc4 {[%emt 0:00:03]} Rb5 {[%emt 0:00:02]} 53. Kd4 {[%emt 0:00:03]} Kg6 {[%emt 0:00:01]} 54. Rc5 {[%emt 0:00:01]} Rb7 {[%emt 0:00:02]} 55. Kc4 {[%emt 0:00:03]} h5 {[%emt 0:00:02]} 56. Rb5 {[%emt 0:00:01]} Rc7+ {[%emt 0:00:02]} 57. Rc5 {[%emt 0:00:03]} Rd7 {[%emt 0:00:02]} 58. gxh5+ {[%emt 0:00:02]} Kxh5 {[%emt 0:00:00]} 59. Kxb4 {[%emt 0:00:01]} Kxh4 {[%emt 0:00:02]} 60. Rc4+ {[%emt 0:00:01]} Kg5 {[%emt 0:00:01]} 61. Ka5 {[%emt 0:00:02]} Kf5 {[%emt 0:00:02]} 62. Rc5 {[%emt 0:00:03]} Ra7+ {[%emt 0:00:04]} 63. Kb6 {[%emt 0:00:02]} Ra3 {[%emt 0:00:02]} 64. b4 {[%emt 0:00:02]} Re3 {[%emt 0:00:03]} 65. b5 {[%emt 0:00:02]} Rd3 {[%emt 0:00:02]} 66. Kc6 {[%emt 0:00:02]} Rd8 {[%emt 0:00:03]} 67. b6 {[%emt 0:00:02]} f6 {[%emt 0:00:01]} 68. Kc7 {[%emt 0:00:02]} 1-0